fUSD/lending_fUSD_20240725
["ID","MTS","AMOUNT","RATE_DAILY","PERIOD"]
[333135190,1721884243646,-150.0,0.00010787,2]
[333135191,1721884243656,-150.0,0.00010789,2]
[333135192,1721884243665,-150.0,0.00010792,2]
[333135193,1721884243675,-150.0,0.00010794,2]
[333135194,1721884243685,-14129.3175,0.00010799,2]
[333135195,1721884243694,-530.01,0.000108,2]
[333135196,1721884243703,-150.0,0.000108,2]
[333135197,1721884243713,-165.34,0.000108,2]
[333135198,1721884243722,-150.0,0.00010804,2]
[333135199,1721884243732,-150.0,0.00010808,2]
[333135200,1721884243742,-150.0,0.00010809,2]
[333135201,1721884243752,-150.0,0.00010811,2]
[333135202,1721884243764,-150.0,0.00010818,2]
[333135203,1721884243773,-150.0,0.00010833,2]
[333135204,1721884243782,-150.0,0.00010836,2]
[333135205,1721884243791,-150.0,0.00010837,2]
[333135206,1721884243801,-150.0,0.00010842,2]
[333135207,1721884243811,-150.0,0.00010846,2]
[333135208,1721884243819,-150.0,0.00010847,2]
[333135209,1721884243829,-150.0,0.00010848,2]
[333135210,1721884243839,-150.0,0.00010852,2]
[333135211,1721884243848,-150.0,0.00010852,2]
[333135212,1721884243857,-150.0,0.00010852,2]
[333135213,1721884243867,-150.0,0.00010855,2]
[333135214,1721884243876,-150.0,0.00010859,2]
[333135215,1721884243884,-150.0,0.00010863,2]
[333135216,1721884243894,-704.39,0.00010864,2]
[333135217,1721884243903,-26664.7312,0.00010864,2]
[333135218,1721884243912,-3589.77,0.00010864,2]
[333135219,1721884243921,-150.0,0.00010866,2]
[333135220,1721884243931,-150.0,0.00010872,2]
[333135222,1721884243940,-150.0,0.00010875,2]
[333135223,1721884243949,-150.0,0.00010878,2]
[333135224,1721884243958,-150.0,0.00010879,2]
[333135225,1721884243968,-150.0,0.00010887,2]
[333135226,1721884243978,-150.0,0.00010888,2]
[333135227,1721884243988,-150.0,0.00010889,2]
[333135228,1721884243998,-9066.2509,0.00010892,2]
[333135229,1721884244007,-150.0,0.00010893,2]
[333135230,1721884244017,-150.0,0.00010894,2]
[333135231,1721884244026,-150.0,0.00010898,2]
[333135232,1721884244035,-1000.0,0.00010898,2]
[333135233,1721884244045,-170.99984636,0.000109,2]
[333135234,1721884244054,-277.58,0.000109,2]
[333135235,1721884244063,-529.74,0.000109,2]
[333135236,1721884244073,-665.59,0.000109,2]
[333135237,1721884244083,-150.0,0.000109,2]
[333135238,1721884244093,-711.62,0.000109,2]
[333135239,1721884244103,-300.0,0.000109,2]
[333135240,1721884244113,-300.0,0.000109,2]
[333135241,1721884244123,-165.34,0.000109,2]
[333135242,1721884244132,-150.0,0.000109,2]
[333135243,1721884244141,-373.96037194,0.000109,2]
[333135244,1721884244151,-150.0,0.00010901,2]
[333135245,1721884244162,-150.0,0.00010902,2]
[333135246,1721884244171,-150.0,0.00010905,2]
[333135247,1721884244180,-500.0,0.00010912,2]
[333135248,1721884244190,-150.0,0.00010912,2]
[333135249,1721884244200,-150.0,0.00010912,2]
[333135250,1721884244417,-150.0,0.00010915,2]
[333135251,1721884244427,-150.0,0.00010919,2]
[333135252,1721884244438,-150.0,0.00010923,2]
[333135253,1721884244449,-150.0,0.00010926,2]
[333135254,1721884244459,-150.0,0.00010928,2]
[333135255,1721884244469,-150.0,0.00010928,2]
[333135256,1721884244479,-150.0,0.0001093,2]
[333135257,1721884244489,-150.0,0.00010934,2]
[333135258,1721884244499,-150.0,0.00010943,2]
[333135259,1721884244509,-150.0,0.00010956,2]
[333135260,1721884244519,-150.0,0.00010956,2]
[333135261,1721884244528,-648.71600037,0.00010958,2]
[333135262,1721884244538,-500.0,0.00010958,2]
[333135263,1721884244548,-500.0,0.00010958,2]
[333135264,1721884244558,-500.0,0.00010958,2]
[333135265,1721884244567,-500.0,0.00010958,2]
[333135266,1721884244576,-500.0,0.00010958,2]
[333135267,1721884244585,-500.0,0.00010958,2]
[333135268,1721884244595,-500.0,0.00010958,2]
[333135269,1721884244604,-500.0,0.00010958,2]
[333135270,1721884244613,-1623.84,0.00010958,2]
[333135271,1721884244622,-1623.84,0.00010958,2]
[333135272,1721884244632,-500.0,0.00010958,2]
[333135273,1721884244641,-500.0,0.00010958,2]
[333135274,1721884244650,-479.54092227,0.00010958,2]
[333135275,1721884244659,-447.59917156,0.00010958,2]
[333135276,1721884244669,-797.37,0.00010958,2]
[333135277,1721884244678,-797.37,0.00010958,2]
[333135278,1721884244687,-681.21,0.00010958,2]
[333135279,1721884244696,-681.21,0.00010958,2]
[333135280,1721884244706,-500.0,0.00010958,2]
[333135281,1721884244715,-500.0,0.00010958,2]
[333135282,1721884244724,-634.9,0.00010958,2]
[333135283,1721884244733,-634.9,0.00010958,2]
[333135284,1721884244742,-500.0,0.00010958,2]
[333135285,1721884244751,-500.0,0.00010958,2]
[333135286,1721884244768,-500.0,0.00010958,2]
[333135287,1721884244778,-500.0,0.00010958,2]
[333135288,1721884244787,-515.61,0.00010958,2]
[333135289,1721884244798,-515.61,0.00010958,2]
[333135290,1721884244808,-1945.43,0.00010958,2]
[333135291,1721884244818,-1945.43,0.00010958,2]
[333135292,1721884244827,-500.0,0.00010958,2]
[333135293,1721884244839,-500.0,0.00010958,2]
[333135294,1721884244848,-500.0,0.00010958,2]
[333135295,1721884244857,-500.0,0.00010958,2]
[333135296,1721884244866,-1436.78,0.00010958,2]
[333135297,1721884244875,-1436.78,0.00010958,2]
[333135298,1721884244885,-500.0,0.00010958,2]
[333135299,1721884244895,-500.0,0.00010958,2]
[333135300,1721884244906,-500.0,0.00010958,2]
[333135301,1721884244915,-500.0,0.00010958,2]
[333135302,1721884244925,-297.637347,0.00010958,2]
[333135303,1721884244935,-1757.07,0.00010958,2]
[333135304,1721884244945,-1757.07,0.00010958,2]
[333135305,1721884244954,-685.67,0.00010958,2]
[333135306,1721884244965,-685.67,0.00010958,2]
[333135307,1721884244974,-1309.13,0.00010958,2]
[333135308,1721884244984,-1309.13,0.00010958,2]
[333135309,1721884244994,-1773.65,0.00010958,2]
[333135310,1721884245005,-1773.65,0.00010958,2]
[333135311,1721884245014,-500.0,0.00010958,2]
[333135312,1721884245024,-268.7028,0.00010958,2]
[333135313,1721884245034,-500.0,0.00010958,2]
[333135314,1721884245044,-1727.26,0.00010958,2]
[333135315,1721884245054,-1727.26,0.00010958,2]
[333135316,1721884245063,-1478.33,0.00010958,2]
[333135317,1721884245072,-1478.33,0.00010958,2]
[333135318,1721884245082,-500.0,0.00010958,2]
[333135319,1721884245091,-500.0,0.00010958,2]
[333135320,1721884245100,-359.84014334,0.00010958,2]
[333135321,1721884245110,-1120.96,0.00010958,2]
[333135322,1721884245119,-1120.96,0.00010958,2]
[333135323,1721884245128,-459.18627874,0.00010958,2]
[333135324,1721884245137,-558.97,0.00010958,2]
[333135325,1721884245147,-1306.12,0.00010958,2]
[333135326,1721884245156,-1306.12,0.00010958,2]
[333135327,1721884245165,-500.0,0.00010958,2]
[333135328,1721884245174,-500.0,0.00010958,2]
[333135329,1721884245184,-1119.48,0.00010958,2]
[333135330,1721884245193,-1119.48,0.00010958,2]
[333135331,1721884245202,-500.0,0.00010958,2]
[333135332,1721884245212,-500.0,0.00010958,2]
[333135333,1721884245221,-1505.98,0.00010958,2]
[333135334,1721884245234,-1505.98,0.00010958,2]
[333135335,1721884245244,-612.93,0.00010958,2]
[333135336,1721884245253,-612.93,0.00010958,2]
[333135337,1721884245263,-500.0,0.00010958,2]
[333135338,1721884245272,-500.0,0.00010958,2]
[333135339,1721884245283,-500.0,0.00010958,2]
[333135340,1721884245294,-500.0,0.00010958,2]
[333135341,1721884245304,-500.10418934,0.00010958,2]
[333135342,1721884245314,-945.8,0.00010958,2]
[333135343,1721884245324,-945.8,0.00010958,2]
[333135344,1721884245334,-1573.71,0.00010958,2]
[333135345,1721884245346,-1573.71,0.00010958,2]
[333135346,1721884245357,-2956.6,0.00010958,2]
[333135347,1721884245366,-2956.6,0.00010958,2]
[333135348,1721884245375,-500.0,0.00010958,2]
[333135349,1721884245384,-500.0,0.00010958,2]
[333135350,1721884245394,-601.0,0.00010958,2]
[333135351,1721884245403,-601.0,0.00010958,2]
[333135352,1721884245412,-500.0,0.00010958,2]
[333135353,1721884245421,-362.62463094,0.00010958,2]
[333135354,1721884245430,-500.0,0.00010958,2]
[333135355,1721884245440,-896.22,0.00010958,2]
[333135356,1721884245449,-500.0,0.00010958,2]
[333135357,1721884245458,-896.22,0.00010958,2]
[333135358,1721884245468,-250.0,0.00010959,2]
[333135359,1721884245477,-500.0,0.00010964,2]
[333135360,1721884245489,-500.0,0.00010964,2]
[333135361,1721884245500,-500.0,0.00010964,2]
[333135362,1721884245510,-500.0,0.00010964,2]
[333135363,1721884245519,-500.0,0.00010964,2]
[333135364,1721884245529,-500.0,0.00010964,2]
[333135365,1721884245538,-500.0,0.00010964,2]
[333135366,1721884245548,-500.0,0.00010964,2]
[333135367,1721884245557,-500.0,0.00010964,2]
[333135368,1721884245567,-500.0,0.00010964,2]
[333135369,1721884245576,-558.54,0.00010964,2]
[333135370,1721884245586,-513.20085251,0.00010964,2]
[333135371,1721884245597,-500.0,0.00010964,2]
[333135372,1721884245607,-841.15,0.00010964,2]
[333135373,1721884245617,-500.0,0.00010964,2]
[333135374,1721884245626,-500.0,0.00010964,2]
[333135375,1721884245638,-500.0,0.00010964,2]
[333135376,1721884245649,-500.0,0.00010964,2]
[333135377,1721884245660,-500.0,0.00010964,2]
[333135378,1721884245670,-500.0,0.00010964,2]
[333135379,1721884245680,-500.0,0.00010964,2]
[333135380,1721884245689,-1061.32,0.00010964,2]
[333135381,1721884245698,-500.0,0.00010964,2]
[333135382,1721884245707,-500.0,0.00010964,2]
[333135383,1721884245715,-595.01569891,0.00010964,2]
[333135384,1721884245725,-500.0,0.00010964,2]
[333135385,1721884245734,-500.0,0.00010964,2]
[333135386,1721884245746,-500.0,0.00010964,2]
[333135387,1721884245757,-500.0,0.00010964,2]
[333135388,1721884245768,-500.0,0.00010964,2]
[333135389,1721884245778,-500.0,0.00010964,2]
[333135390,1721884245787,-500.0,0.00010964,2]
[333135391,1721884245796,-500.0,0.00010964,2]
[333135392,1721884245805,-500.0,0.00010964,2]
[333135393,1721884245814,-522.08887092,0.00010964,2]
[333135394,1721884245823,-500.0,0.00010964,2]
[333135395,1721884245834,-500.0,0.00010964,2]
[333135396,1721884245846,-933.47,0.00010964,2]
[333135397,1721884245855,-500.0,0.00010964,2]
[333135398,1721884245865,-500.0,0.00010964,2]
[333135399,1721884245874,-500.0,0.00010964,2]
[333135400,1721884245886,-500.0,0.00010964,2]
[333135401,1721884245896,-500.0,0.00010964,2]
[333135402,1721884245905,-1945.34,0.00010964,2]
[333135403,1721884245916,-500.0,0.00010964,2]
[333135404,1721884245926,-500.0,0.00010964,2]
[333135405,1721884245938,-500.0,0.00010964,2]
[333135406,1721884245948,-580.73,0.00010964,2]
[333135407,1721884245957,-745.15,0.00010964,2]
[333135408,1721884245967,-1775.22,0.00010964,2]
[333135409,1721884245977,-500.0,0.00010964,2]
[333135410,1721884245988,-627.85,0.00010964,2]
[333135411,1721884245998,-500.0,0.00010964,2]
[333135412,1721884246008,-500.0,0.00010964,2]
[333135413,1721884246019,-500.0,0.00010964,2]
[333135414,1721884246032,-500.0,0.00010964,2]
[333135415,1721884246042,-500.0,0.00010964,2]
[333135416,1721884246051,-500.0,0.00010964,2]
[333135417,1721884246061,-2059.31,0.00010964,2]
[333135418,1721884246071,-500.0,0.00010964,2]
[333135419,1721884246080,-500.0,0.00010964,2]
[333135420,1721884246090,-1896.87,0.00010964,2]
[333135421,1721884246100,-500.0,0.00010964,2]
[333135422,1721884246110,-2320.45,0.00010964,2]
[333135423,1721884246119,-3273.86,0.00010964,2]
[333135424,1721884246129,-500.0,0.00010964,2]
[333135425,1721884246140,-2788.75,0.00010964,2]
[333135426,1721884246150,-1805.33,0.00010964,2]
[333135427,1721884246160,-1344.89,0.00010964,2]
[333135428,1721884246169,-638.73,0.00010964,2]
[333135429,1721884246179,-150.0,0.00010965,2]
[333135430,1721884246189,-150.0,0.00010966,2]
[333135431,1721884246199,-150.0,0.00010971,2]
[333135432,1721884246209,-150.0,0.00010975,2]
[333135433,1721884246219,-150.0,0.00010977,2]
[333135435,1721884246229,-1573.71,0.00010979,2]
[333135436,1721884246238,-151.93920307,0.00010979,2]
[333135437,1721884246248,-601.0,0.00010979,2]
[333135438,1721884246258,-896.22,0.00010979,2]
[333135439,1721884246267,-88270.32597775,0.0001098,2]
[333135440,1721884246283,-668.37,0.0001098,2]
[333135441,1721884246295,-318.8,0.0001098,2]
[333135442,1721884246507,-31057.13599495,0.0001098,2]
[333135443,1721884246518,-643.11,0.0001098,2]
[333135444,1721884246675,-10739.17843617,0.0001098,2]
[333135445,1721884246684,-150.0,0.00010983,2]
[333135446,1721884246694,-150.0,0.00010983,2]
[333135447,1721884246704,-150.0,0.00010984,2]
[333135448,1721884246713,-9774.0,0.00010986,2]
[333135449,1721884246723,-500.0,0.00010991,2]
[333135450,1721884246733,-1623.84,0.00010991,2]
[333135451,1721884246742,-506.27967774,0.00010991,2]
[333135452,1721884246752,-515.61,0.00010991,2]
[333135453,1721884246971,-500.0,0.00010991,2]
[333135454,1721884246981,-1436.78,0.00010991,2]
[333135455,1721884246990,-500.0,0.00010991,2]
[333135456,1721884247001,-1757.07,0.00010991,2]
[333135457,1721884247011,-1309.13,0.00010991,2]
[333135458,1721884247022,-1478.33,0.00010991,2]
[333135459,1721884247032,-1120.96,0.00010991,2]
[333135460,1721884247041,-1306.12,0.00010991,2]
[333135461,1721884247052,-1119.48,0.00010991,2]
[333135462,1721884247062,-1505.98,0.00010991,2]
[333135463,1721884247072,-1573.71,0.00010991,2]
[333135464,1721884247081,-2956.6,0.00010991,2]
[333135465,1721884247092,-601.0,0.00010991,2]
[333135466,1721884247102,-896.22,0.00010991,2]
[333135467,1721884247113,-8268.5241952,0.00010992,2]
[333135468,1721884247123,-23797.1426455,0.00010992,2]
[333135469,1721884247133,-1371.4386593,0.00010992,2]
[333135470,1721884247143,-865.56970483,0.00010992,2]
[333135471,1721884247155,-1079.7456538,0.00010992,2]
[333135472,1721884247165,-48159.24596566,0.00010992,2]
[333135473,1721884247513,-69701.71977126,0.00010992,2]
[333135474,1721884380932,933.06,9.05e-05,2]
[333135482,1721884416030,162.07,8.315e-05,2]
[333135484,1721884477277,933.06,9.05e-05,2]
[333135487,1721884999331,153.96,8.219e-05,2]
[333135488,1721885183920,309.30631651,0.00015,120]
[333135514,1721885431577,-300.0,9.867e-05,2]
[333135515,1721885431587,-1000.0,9.876e-05,2]
[333135516,1721885431597,-11982.98,9.876e-05,2]
[333135517,1721885431607,-500.0,0.0001,2]
[333135518,1721885431616,-500.0,0.0001,2]
[333135519,1721885431625,-500.0,0.0001,2]
[333135520,1721885431635,-153.96,0.00010468,2]
[333135521,1721885431644,-3571.38327383,0.000106,2]
[333135522,1721885431656,-308.06435349,0.000106,2]
[333135523,1721885431672,-5005.35696604,0.000106,2]
[333135524,1721885431683,-295.94034195,0.000106,2]
[333135525,1721885431749,-2240.55686469,0.000106,2]
[333135526,1721885431759,-150.0,0.00010733,2]
[333135527,1721885431769,-150.0,0.00010743,2]
[333135528,1721885431778,-169.18682987,0.00010765,2]
[333135529,1721885431788,-150.0,0.00010765,2]
[333135530,1721885431798,-150.0,0.00010782,2]
[333135531,1721885431807,-150.0,0.00010809,2]
[333135532,1721885431817,-150.0,0.0001081,2]
[333135533,1721885431827,-150.0,0.00010812,2]
[333135534,1721885431837,-150.0,0.00010816,2]
[333135535,1721885431846,-150.0,0.00010818,2]
[333135536,1721885431855,-150.0,0.0001082,2]
[333135537,1721885431865,-150.0,0.00010822,2]
[333135538,1721885431875,-150.0,0.00010823,2]
[333135539,1721885431884,-150.0,0.00010832,2]
[333135540,1721885431894,-150.0,0.00010832,2]
[333135541,1721885431903,-150.0,0.00010835,2]
[333135542,1721885431913,-150.0,0.00010844,2]
[333135543,1721885431922,-150.0,0.00010848,2]
[333135544,1721885431932,-150.0,0.00010849,2]
[333135545,1721885431941,-150.0,0.0001085,2]
[333135546,1721885431951,-150.0,0.00010853,2]
[333135548,1721885431960,-420.0,0.00010854,2]
[333135549,1721885431970,-150.0,0.00010856,2]
[333135551,1721885431979,-53.61733064,0.00010857,2]
[333135552,1721885437551,-96.38266936,0.00010857,2]
[333135553,1721885437561,-150.0,0.00010875,2]
[333135554,1721885437570,-150.0,0.00010882,2]
[333135555,1721885437580,-150.0,0.00010897,2]
[333135556,1721885437589,-1121.50797397,0.00010897,2]
[333135557,1721885437706,-313.36359595,0.00010897,2]
[333135558,1721885437724,-28519.78604438,0.00010897,2]
[333135700,1721885439538,-3212.9,0.00010897,2]
[333135715,1721885439632,-28690.26283402,0.00010897,2]
[333135717,1721885439642,-9100.60390609,0.00010899,2]
[333135719,1721885439651,-150.0,0.00010902,2]
[333135721,1721885439661,-150.0,0.00010903,2]
[333135723,1721885439670,-150.0,0.00010909,2]
[333135725,1721885439679,-500.0,0.00010912,2]
[333135727,1721885439688,-150.0,0.00010917,2]
[333135729,1721885439697,-150.0,0.0001092,2]
[333135731,1721885439707,-150.0,0.00010925,2]
[333135733,1721885439716,-150.0,0.00010933,2]
[333135735,1721885439725,-150.0,0.00010943,2]
[333135737,1721885439734,-150.0,0.00010951,2]
[333135739,1721885439743,-150.0,0.00010952,2]
[333135741,1721885439752,-500.0,0.00010958,2]
[333135743,1721885439762,-500.0,0.00010958,2]
[333135745,1721885439771,-500.0,0.00010958,2]
[333135747,1721885439781,-500.0,0.00010958,2]
[333135749,1721885439790,-500.0,0.00010958,2]
[333135751,1721885439799,-500.0,0.00010958,2]
[333135753,1721885439808,-894.58,0.00010958,2]
[333135755,1721885439818,-894.58,0.00010958,2]
[333135757,1721885439827,-500.0,0.00010958,2]
[333135759,1721885439836,-500.0,0.00010958,2]
[333135761,1721885439845,-500.0,0.00010958,2]
[333135763,1721885439855,-500.0,0.00010958,2]
[333135765,1721885439864,-500.0,0.00010958,2]
[333135767,1721885439873,-500.0,0.00010958,2]
[333135769,1721885439882,-500.0,0.00010958,2]
[333135771,1721885439892,-500.0,0.00010958,2]
[333135773,1721885439903,-500.0,0.00010958,2]
[333135793,1721885440099,-500.0,0.00010958,2]
[333135796,1721885440118,-1806.92,0.00010958,2]
[333135798,1721885440129,-1806.92,0.00010958,2]
[333135800,1721885440139,-500.0,0.00010958,2]
[333135802,1721885440152,-500.0,0.00010958,2]
[333135804,1721885440161,-500.0,0.00010958,2]
[333135806,1721885440171,-500.0,0.00010958,2]
[333135808,1721885440182,-500.0,0.00010958,2]
[333135810,1721885440193,-500.0,0.00010958,2]
[333135813,1721885440204,-500.0,0.00010958,2]
[333135815,1721885440214,-500.0,0.00010958,2]
[333135817,1721885440224,-500.0,0.00010958,2]
[333135819,1721885440235,-675.21,0.00010958,2]
[333135821,1721885440244,-675.21,0.00010958,2]
[333135823,1721885440254,-1262.2,0.00010958,2]
[333135824,1721885440264,-1262.2,0.00010958,2]
[333135826,1721885440273,-500.0,0.00010958,2]
[333135828,1721885440282,-500.0,0.00010958,2]
[333135830,1721885440291,-500.0,0.00010958,2]
[333135832,1721885440300,-500.0,0.00010958,2]
[333135833,1721885440309,-500.0,0.00010958,2]
[333135835,1721885440319,-500.0,0.00010958,2]
[333135837,1721885440329,-500.0,0.00010958,2]
[333135839,1721885440338,-500.0,0.00010958,2]
[333135841,1721885440348,-500.0,0.00010958,2]
[333135843,1721885440360,-500.0,0.00010958,2]
[333135845,1721885440369,-500.0,0.00010958,2]
[333135847,1721885440380,-500.0,0.00010958,2]
[333135849,1721885440390,-500.0,0.00010958,2]
[333135851,1721885440399,-500.0,0.00010958,2]
[333135853,1721885440409,-500.0,0.00010958,2]
[333135855,1721885440418,-500.0,0.00010958,2]
[333135857,1721885440427,-500.0,0.00010958,2]
[333135859,1721885440436,-500.0,0.00010958,2]
[333135861,1721885440446,-780.02,0.00010958,2]
[333135863,1721885440455,-780.02,0.00010958,2]
[333135865,1721885440464,-500.0,0.00010958,2]
[333135867,1721885440475,-500.0,0.00010958,2]
[333135869,1721885440484,-1540.06,0.00010958,2]
[333135871,1721885440493,-1540.06,0.00010958,2]
[333135873,1721885440502,-1644.69,0.00010958,2]
[333135875,1721885440512,-1644.69,0.00010958,2]
[333135877,1721885440522,-500.0,0.00010958,2]
[333135878,1721885440532,-500.0,0.00010958,2]
[333135880,1721885440541,-500.0,0.00010958,2]
[333135882,1721885440550,-500.0,0.00010958,2]
[333135884,1721885440559,-500.0,0.00010958,2]
[333135886,1721885440569,-500.0,0.00010958,2]
[333135888,1721885440578,-511.41325689,0.00010958,2]
[333135890,1721885440587,-500.0,0.00010958,2]
[333135892,1721885440597,-1314.2,0.00010958,2]
[333135894,1721885440607,-1314.2,0.00010958,2]
[333135896,1721885440616,-500.0,0.00010958,2]
[333135898,1721885440626,-500.0,0.00010958,2]
[333135899,1721885440635,-543.48724618,0.00010958,2]
[333135901,1721885440645,-500.0,0.00010958,2]
[333135903,1721885440654,-500.0,0.00010958,2]
[333135905,1721885440663,-1257.18,0.00010958,2]
[333135907,1721885440673,-1257.18,0.00010958,2]
[333135909,1721885440682,-500.0,0.00010958,2]
[333135911,1721885440692,-500.0,0.00010958,2]
[333135913,1721885440703,-1288.86,0.00010958,2]
[333135915,1721885440713,-500.0,0.00010958,2]
[333135917,1721885440722,-500.0,0.00010958,2]
[333135918,1721885440732,-1288.86,0.00010958,2]
[333135920,1721885440741,-500.0,0.00010958,2]
[333135922,1721885440750,-500.0,0.00010958,2]
[333135924,1721885440759,-500.0,0.00010958,2]
[333135926,1721885440769,-500.0,0.00010958,2]
[333135928,1721885440778,-500.0,0.00010958,2]
[333135930,1721885440787,-500.0,0.00010958,2]
[333135931,1721885440796,-500.0,0.00010958,2]
[333135933,1721885440806,-500.0,0.00010958,2]
[333135935,1721885440815,-500.0,0.00010958,2]
[333135937,1721885440825,-372.92680007,0.00010958,2]
[333135939,1721885440835,-640.81,0.00010958,2]
[333135941,1721885440845,-640.81,0.00010958,2]
[333135943,1721885440855,-612.12,0.00010958,2]
[333135945,1721885440865,-612.12,0.00010958,2]
[333135947,1721885440874,-1537.43,0.00010958,2]
[333135948,1721885440883,-501.46943653,0.00010958,2]
[333135950,1721885440894,-1537.43,0.00010958,2]
[333135952,1721885440904,-500.0,0.00010958,2]
[333135954,1721885440914,-500.0,0.00010958,2]
[333135956,1721885440924,-500.0,0.00010958,2]
[333135958,1721885440934,-500.0,0.00010958,2]
[333135960,1721885440944,-500.0,0.00010958,2]
[333135962,1721885440953,-500.0,0.00010958,2]
[333135964,1721885440963,-1245.37,0.00010958,2]
[333135966,1721885440972,-1245.37,0.00010958,2]
[333135968,1721885440982,-1518.7,0.00010958,2]
[333135969,1721885440991,-1518.7,0.00010958,2]
[333135971,1721885441001,-500.0,0.00010958,2]
[333135973,1721885441011,-500.0,0.00010958,2]
[333135975,1721885441021,-2017.08,0.00010958,2]
[333135977,1721885441032,-500.0,0.00010958,2]
[333135979,1721885441042,-2017.08,0.00010958,2]
[333135981,1721885441052,-500.0,0.00010958,2]
[333135983,1721885441063,-500.0,0.00010958,2]
[333135985,1721885441072,-500.0,0.00010958,2]
[333135987,1721885441082,-1783.31,0.00010958,2]
[333135989,1721885441091,-1783.31,0.00010958,2]
[333135991,1721885441101,-1007.04,0.00010958,2]
[333135993,1721885441111,-1007.04,0.00010958,2]
[333135995,1721885441120,-1145.49,0.00010958,2]
[333135997,1721885441131,-1145.49,0.00010958,2]
[333135999,1721885441144,-462.03249847,0.00010958,2]
[333136001,1721885441155,-1348.91,0.00010958,2]
[333136003,1721885441164,-1348.91,0.00010958,2]
[333136005,1721885441174,-500.0,0.00010958,2]
[333136007,1721885441184,-500.0,0.00010958,2]
[333136009,1721885441193,-489.13589928,0.00010958,2]
[333136010,1721885441203,-500.0,0.00010958,2]
[333136012,1721885441212,-506.2107908,0.00010958,2]
[333136014,1721885441224,-500.0,0.00010958,2]
[333136016,1721885441234,-500.0,0.00010958,2]
[333136018,1721885441244,-500.0,0.00010958,2]
[333136020,1721885441254,-500.0,0.00010958,2]
[333136022,1721885441263,-500.0,0.00010958,2]
[333136024,1721885441273,-500.0,0.00010958,2]
[333136026,1721885441283,-1293.54,0.00010958,2]
[333136028,1721885441292,-1293.54,0.00010958,2]
[333136030,1721885441302,-500.0,0.00010958,2]
[333136032,1721885441312,-500.0,0.00010958,2]
[333136034,1721885441322,-564.85,0.00010958,2]
[333136036,1721885441332,-564.85,0.00010958,2]
[333136037,1721885441342,-1463.77,0.00010958,2]
[333136039,1721885441351,-1463.77,0.00010958,2]
[333136041,1721885441360,-980.84,0.00010958,2]
[333136043,1721885441369,-980.84,0.00010958,2]
[333136045,1721885441378,-1860.03,0.00010958,2]
[333136047,1721885441387,-1860.03,0.00010958,2]
[333136049,1721885441397,-628.53,0.00010958,2]
[333136051,1721885441407,-573.8,0.00010958,2]
[333136053,1721885441416,-573.8,0.00010958,2]
[333136055,1721885441426,-628.53,0.00010958,2]
[333136057,1721885441436,-2016.09,0.00010958,2]
[333136059,1721885441446,-2016.09,0.00010958,2]
[333136061,1721885441456,-1142.86,0.00010958,2]